[Event "Early-Titled-Tuesday-Blitz-May-14-2024"]
[Site "Chess.com"]
[Date "2024.05.14"]
[Round "11"]
[White "PawnEatingZombie"]
[Black "SargissyanSargis"]
[Result "1/2-1/2"]
[WhiteElo "2297"]
[BlackElo "2418"]
[TimeControl "180+1"]
[EndTime "10:08:11 PDT"]
[Termination "Game drawn by repetition"]

1. e4 {[%clk 0:02:57.7]} 1... c5 {[%clk 0:02:57.5]} 2. Nc3 {[%clk 0:02:57]} 2...
Nc6 {[%clk 0:02:57.4]} 3. f4 {[%clk 0:02:56.8]} 3... e6 {[%clk 0:02:55.4]} 4. g3
{[%clk 0:02:46.3]} 4... d5 {[%clk 0:02:55.1]} 5. Bg2 {[%clk 0:02:37.8]} 5... d4
{[%clk 0:02:33.7]} 6. Nce2 {[%clk 0:02:36.7]} 6... d3 {[%clk 0:02:31.1]} 7. cxd3
{[%clk 0:02:29.6]} 7... Qxd3 {[%clk 0:02:27.7]} 8. Nf3 {[%clk 0:02:15.7]} 8...
Nf6 {[%clk 0:02:25.6]} 9. O-O {[%clk 0:02:05.3]} 9... Nxe4 {[%clk 0:02:22.8]}
10. f5 {[%clk 0:01:54.5]} 10... e5 {[%clk 0:02:16.9]} 11. b4 {[%clk 0:01:26.2]}
11... cxb4 {[%clk 0:02:11.1]} 12. Bb2 {[%clk 0:01:25.4]} 12... Bc5+ {[%clk
0:02:10.3]} 13. Kh1 {[%clk 0:01:23.9]} 13... O-O {[%clk 0:02:08.2]} 14. Nxe5
{[%clk 0:01:18.6]} 14... Nxe5 {[%clk 0:02:07.7]} 15. Bxe5 {[%clk 0:01:18.5]}
15... Nf2+ {[%clk 0:02:08.3]} 16. Rxf2 {[%clk 0:01:18.7]} 16... Bxf2 {[%clk
0:02:09]} 17. Nf4 {[%clk 0:01:13.7]} 17... Qxf5 {[%clk 0:02:08.5]} 18. d4 {[%clk
0:01:09.2]} 18... Be6 {[%clk 0:01:48.3]} 19. Qe2 {[%clk 0:01:08.9]} 19... Rfd8
{[%clk 0:01:33.5]} 20. Be4 {[%clk 0:01:04.8]} 20... Qg4 {[%clk 0:01:22.4]} 21.
Qxf2 {[%clk 0:01:01.2]} 21... Rac8 {[%clk 0:01:08.3]} 22. h3 {[%clk 0:01:00.9]}
22... Qg5 {[%clk 0:01:07.8]} 23. Nxe6 {[%clk 0:00:57.8]} 23... fxe6 {[%clk
0:01:07.8]} 24. Qf4 {[%clk 0:00:42.2]} 24... Qxf4 {[%clk 0:00:55.9]} 25. gxf4
{[%clk 0:00:42.4]} 25... b6 {[%clk 0:00:54.6]} 26. Rg1 {[%clk 0:00:41.1]} 26...
g6 {[%clk 0:00:54.4]} 27. h4 {[%clk 0:00:40.8]} 27... Kf7 {[%clk 0:00:53]} 28.
h5 {[%clk 0:00:41.1]} 28... Rg8 {[%clk 0:00:50.1]} 29. h6 {[%clk 0:00:39.8]}
29... Rc3 {[%clk 0:00:46.8]} 30. d5 {[%clk 0:00:40.2]} 30... Rc4 {[%clk
0:00:46.2]} 31. Bd3 {[%clk 0:00:23.6]} 31... Rc5 {[%clk 0:00:39.7]} 32. dxe6+
{[%clk 0:00:19.4]} 32... Kxe6 {[%clk 0:00:36.6]} 33. Bxg6 {[%clk 0:00:18.1]}
33... Rxg6 {[%clk 0:00:29.5]} 34. Rxg6+ {[%clk 0:00:17.4]} 34... hxg6 {[%clk
0:00:30.4]} 35. h7 {[%clk 0:00:17.8]} 35... Rc8 {[%clk 0:00:29.3]} 36. h8=Q
{[%clk 0:00:18.1]} 36... Rxh8+ {[%clk 0:00:28.9]} 37. Bxh8 {[%clk 0:00:19]}
37... Kf5 {[%clk 0:00:29.3]} 38. Be5 {[%clk 0:00:13.3]} 38... g5 {[%clk
0:00:29.7]} 39. Bb8 {[%clk 0:00:11.7]} 39... gxf4 {[%clk 0:00:26.4]} 40. Bxa7
{[%clk 0:00:11.3]} 40... b5 {[%clk 0:00:26.5]} 41. Kg2 {[%clk 0:00:10.6]} 41...
Ke4 {[%clk 0:00:27.1]} 42. Bc5 {[%clk 0:00:09.9]} 42... Kd3 {[%clk 0:00:20.7]}
43. Bxb4 {[%clk 0:00:09.9]} 43... Kc4 {[%clk 0:00:20.3]} 44. a3 {[%clk
0:00:10.3]} 44... Kd5 {[%clk 0:00:18.4]} 45. Kf3 {[%clk 0:00:11.2]} 45... Kc6
{[%clk 0:00:18.8]} 46. Kxf4 {[%clk 0:00:11.5]} 46... Kb7 {[%clk 0:00:19.3]} 47.
Ke5 {[%clk 0:00:12.1]} 47... Kc6 {[%clk 0:00:19.7]} 48. Kd4 {[%clk 0:00:12.3]}
48... Kb6 {[%clk 0:00:20]} 49. Kd5 {[%clk 0:00:12.8]} 49... Ka6 {[%clk
0:00:20.1]} 50. Kc6 {[%clk 0:00:12.9]} 50... Ka7 {[%clk 0:00:20.1]} 51. Kxb5
{[%clk 0:00:13.6]} 51... Kb7 {[%clk 0:00:20.4]} 52. Kc5 {[%clk 0:00:13.3]} 52...
Ka8 {[%clk 0:00:20.5]} 53. Kb5 {[%clk 0:00:14]} 53... Kb7 {[%clk 0:00:20.9]} 54.
Kc5 {[%clk 0:00:14.9]} 54... Ka8 {[%clk 0:00:21.5]} 55. Kb5 {[%clk 0:00:15.6]}
55... Kb7 {[%clk 0:00:22.4]} 1/2-1/2

[Event "Early-Titled-Tuesday-Blitz-May-14-2024"]
[Site "Chess.com"]
[Date "2024.05.14"]
[Round "11"]
[White "Matibar"]
[Black "Iskusnyh"]
[Result "1-0"]
[WhiteElo "2784"]
[BlackElo "2606"]
[TimeControl "180+1"]
[EndTime "10:08:12 PDT"]
[Termination "Matibar won on time"]

1. Nc3 {[%clk 0:03:00.9]} 1... d5 {[%clk 0:02:57.2]} 2. Nf3 {[%clk 0:02:58.6]}
2... Nf6 {[%clk 0:02:51.4]} 3. e3 {[%clk 0:02:53.9]} 3... g6 {[%clk 0:02:41.7]}
4. b3 {[%clk 0:02:44.5]} 4... Bg7 {[%clk 0:02:40.6]} 5. Bb2 {[%clk 0:02:45.4]}
5... O-O {[%clk 0:02:40.5]} 6. g3 {[%clk 0:02:45.5]} 6... c5 {[%clk 0:02:39.2]}
7. Bg2 {[%clk 0:02:45.7]} 7... Nc6 {[%clk 0:02:39.1]} 8. Ne2 {[%clk 0:02:45.7]}
8... Qc7 {[%clk 0:02:34.8]} 9. d4 {[%clk 0:02:44.9]} 9... Ne4 {[%clk 0:02:24.2]}
10. O-O {[%clk 0:02:43.3]} 10... Rd8 {[%clk 0:02:16.2]} 11. Nd2 {[%clk
0:02:33.3]} 11... Nxd2 {[%clk 0:02:03.8]} 12. Qxd2 {[%clk 0:02:34.2]} 12... Bg4
{[%clk 0:02:04]} 13. Nf4 {[%clk 0:02:30.2]} 13... e5 {[%clk 0:01:07.4]} 14. Nxd5
{[%clk 0:02:26.7]} 14... Rxd5 {[%clk 0:00:56.3]} 15. Bxd5 {[%clk 0:02:27.6]}
15... exd4 {[%clk 0:00:55]} 16. exd4 {[%clk 0:02:19.8]} 16... Nxd4 {[%clk
0:00:48.6]} 17. Bxd4 {[%clk 0:02:07.7]} 17... cxd4 {[%clk 0:00:48.4]} 18. Rae1
{[%clk 0:01:57.7]} 18... Rd8 {[%clk 0:00:42.1]} 19. Bg2 {[%clk 0:01:55.4]} 19...
Bf5 {[%clk 0:00:38.1]} 20. Re2 {[%clk 0:01:46.8]} 20... Bf6 {[%clk 0:00:35.6]}
21. Rfe1 {[%clk 0:01:45.2]} 21... Kg7 {[%clk 0:00:34.3]} 22. Re8 {[%clk
0:01:38.7]} 22... Rxe8 {[%clk 0:00:16.6]} 23. Rxe8 {[%clk 0:01:39.6]} 23... a5
{[%clk 0:00:16.9]} 24. Re2 {[%clk 0:01:23.1]} 24... b6 {[%clk 0:00:15.5]} 25.
Be4 {[%clk 0:01:22.6]} 25... Bh3 {[%clk 0:00:14.2]} 26. Qd3 {[%clk 0:01:15.5]}
26... h5 {[%clk 0:00:13.7]} 27. Re1 {[%clk 0:01:14.7]} 27... Qc5 {[%clk
0:00:12.8]} 28. Qf3 {[%clk 0:01:11.8]} 28... Qb4 {[%clk 0:00:11.3]} 29. Qe2
{[%clk 0:01:07.7]} 29... Bg4 {[%clk 0:00:09.7]} 30. f3 {[%clk 0:01:07.6]} 30...
Bh3 {[%clk 0:00:09]} 31. Bd3 {[%clk 0:01:07.6]} 31... Qc5 {[%clk 0:00:08.3]} 32.
Kf2 {[%clk 0:01:07.3]} 32... Be6 {[%clk 0:00:07.5]} 33. h4 {[%clk 0:01:05.4]}
33... a4 {[%clk 0:00:06.3]} 34. bxa4 {[%clk 0:01:02.1]} 34... Qa3 {[%clk
0:00:05.1]} 35. Bc4 {[%clk 0:00:59.1]} 35... Qe3+ {[%clk 0:00:02.2]} 36. Qxe3
{[%clk 0:00:51.5]} 36... dxe3+ {[%clk 0:00:03.1]} 37. Kxe3 {[%clk 0:00:51]}
37... Bxc4 {[%clk 0:00:03.9]} 38. Rb1 {[%clk 0:00:51.2]} 38... Bxa2 {[%clk
0:00:02.8]} 39. Rxb6 {[%clk 0:00:50.5]} 39... Be5 {[%clk 0:00:03.4]} 40. f4
{[%clk 0:00:43.5]} 40... Bc7 {[%clk 0:00:03.2]} 41. Rb7 {[%clk 0:00:43.1]} 41...
Ba5 {[%clk 0:00:02.6]} 42. Kd4 {[%clk 0:00:42.8]} 42... Be6 {[%clk 0:00:01.4]}
43. c4 {[%clk 0:00:41.3]} 43... Kf6 {[%clk 0:00:01.5]} 44. c5 {[%clk 0:00:41]}
44... Kf5 {[%clk 0:00:01.9]} 45. c6 {[%clk 0:00:40.9]} 45... Kg4 {[%clk
0:00:02.2]} 46. Rb5 {[%clk 0:00:39.6]} 46... Bc7 {[%clk 0:00:01.7]} 47. a5
{[%clk 0:00:39.6]} 47... Bxa5 {[%clk 0:00:01.4]} 48. Rxa5 {[%clk 0:00:39.4]}
48... Kxg3 {[%clk 0:00:02.3]} 49. Re5 {[%clk 0:00:36.9]} 49... Bg4 {[%clk
0:00:00.5]} 50. Rg5 {[%clk 0:00:36.5]} 1-0

[Event "Early-Titled-Tuesday-Blitz-May-14-2024"]
[Site "Chess.com"]
[Date "2024.05.14"]
[Round "11"]
[White "Felix-Rose"]
[Black "JJDAREK"]
[Result "1-0"]
[WhiteElo "2275"]
[BlackElo "2366"]
[TimeControl "180+1"]
[EndTime "10:08:12 PDT"]
[Termination "Felix-Rose won on time"]

1. e4 {[%clk 0:03:00.9]} 1... d6 {[%clk 0:03:00]} 2. d4 {[%clk 0:02:59.7]} 2...
Nf6 {[%clk 0:03:00.5]} 3. Nc3 {[%clk 0:02:59.8]} 3... g6 {[%clk 0:03:01]} 4. Nf3
{[%clk 0:02:57.9]} 4... Bg7 {[%clk 0:03:00.8]} 5. h3 {[%clk 0:02:57.9]} 5... O-O
{[%clk 0:03:00.5]} 6. Be3 {[%clk 0:02:58.4]} 6... a6 {[%clk 0:03:00.5]} 7. a4
{[%clk 0:02:58]} 7... Nc6 {[%clk 0:03:00.3]} 8. a5 {[%clk 0:02:43.6]} 8... e5
{[%clk 0:02:59]} 9. dxe5 {[%clk 0:02:34.2]} 9... dxe5 {[%clk 0:02:59.9]} 10.
Qxd8 {[%clk 0:02:26.9]} 10... Rxd8 {[%clk 0:03:00.8]} 11. Bc4 {[%clk 0:02:26.8]}
11... h6 {[%clk 0:02:45.3]} 12. O-O {[%clk 0:02:25]} 12... Nd4 {[%clk
0:02:42.6]} 13. Nxe5 {[%clk 0:02:09.1]} 13... Nxc2 {[%clk 0:01:55]} 14. Bxf7+
{[%clk 0:02:03.3]} 14... Kh8 {[%clk 0:01:42.1]} 15. Bxg6 {[%clk 0:01:54.1]}
15... Nxa1 {[%clk 0:01:37.6]} 16. Nf7+ {[%clk 0:01:51.7]} 16... Kg8 {[%clk
0:01:37]} 17. Nxd8 {[%clk 0:01:34.9]} 17... Nc2 {[%clk 0:01:37.1]} 18. Bf7+
{[%clk 0:01:17.7]} 18... Kh7 {[%clk 0:01:35.5]} 19. Bc5 {[%clk 0:01:05.4]} 19...
Bxh3 {[%clk 0:01:05.9]} 20. gxh3 {[%clk 0:00:53.8]} 20... Rxd8 {[%clk
0:01:05.1]} 21. Rc1 {[%clk 0:00:54.5]} 21... Nd4 {[%clk 0:00:59.5]} 22. Kf1
{[%clk 0:00:51.6]} 22... Nc6 {[%clk 0:00:48.3]} 23. b4 {[%clk 0:00:44.2]} 23...
Rd3 {[%clk 0:00:41.6]} 24. Be6 {[%clk 0:00:39.8]} 24... Nd7 {[%clk 0:00:30.9]}
25. Ke2 {[%clk 0:00:36.2]} 25... Nxc5 {[%clk 0:00:30.9]} 26. Bf5+ {[%clk
0:00:36]} 26... Kg8 {[%clk 0:00:27.5]} 27. bxc5 {[%clk 0:00:36.2]} 27... Rd8
{[%clk 0:00:21]} 28. Nd5 {[%clk 0:00:35.5]} 28... Nxa5 {[%clk 0:00:19.5]} 29.
Nxc7 {[%clk 0:00:33.2]} 29... Nc6 {[%clk 0:00:16.7]} 30. Rb1 {[%clk 0:00:32.5]}
30... Nd4+ {[%clk 0:00:12.6]} 31. Ke3 {[%clk 0:00:28]} 31... Be5 {[%clk
0:00:11.6]} 32. Bg4 {[%clk 0:00:21.2]} 32... Nc2+ {[%clk 0:00:10.6]} 33. Kf3
{[%clk 0:00:20.9]} 33... Rf8+ {[%clk 0:00:09]} 34. Kg2 {[%clk 0:00:20.2]} 34...
Bd4 {[%clk 0:00:09.4]} 35. Rxb7 {[%clk 0:00:17.5]} 35... Rxf2+ {[%clk
0:00:08.6]} 36. Kg3 {[%clk 0:00:18]} 36... Rf1 {[%clk 0:00:04.9]} 37. Ne6 {[%clk
0:00:16.9]} 37... Be5+ {[%clk 0:00:04.6]} 38. Kh4 {[%clk 0:00:14.6]} 38... Bf6+
{[%clk 0:00:03.8]} 39. Kh5 {[%clk 0:00:15.2]} 39... Ne3 {[%clk 0:00:03.3]} 40.
Kxh6 {[%clk 0:00:13.1]} 40... Nxg4+ {[%clk 0:00:03.4]} 41. hxg4 {[%clk 0:00:14]}
41... Be5 {[%clk 0:00:01.6]} 42. g5 {[%clk 0:00:13.1]} 42... Rf2 {[%clk
0:00:00.4]} 43. Kg6 {[%clk 0:00:13.5]} 1-0

[Event "Early-Titled-Tuesday-Blitz-May-14-2024"]
[Site "Chess.com"]
[Date "2024.05.14"]
[Round "11"]
[White "kingofthenil"]
[Black "Revan_2002"]
[Result "1-0"]
[WhiteElo "2860"]
[BlackElo "2750"]
[TimeControl "180+1"]
[EndTime "10:08:13 PDT"]
[Termination "kingofthenil won on time"]

1. e4 {[%clk 0:02:53.7]} 1... e5 {[%clk 0:02:59.6]} 2. Nf3 {[%clk 0:02:53]} 2...
Nc6 {[%clk 0:03:00.1]} 3. Bc4 {[%clk 0:02:53.6]} 3... Bc5 {[%clk 0:02:59.1]} 4.
d3 {[%clk 0:02:53.8]} 4... Nf6 {[%clk 0:02:59.6]} 5. c3 {[%clk 0:02:54.5]} 5...
d6 {[%clk 0:02:59.4]} 6. Bb3 {[%clk 0:02:54.1]} 6... a6 {[%clk 0:02:58.3]} 7.
Nbd2 {[%clk 0:02:53.9]} 7... Ba7 {[%clk 0:02:58.7]} 8. Nf1 {[%clk 0:02:53.6]}
8... O-O {[%clk 0:02:54.8]} 9. h3 {[%clk 0:02:50.7]} 9... Be6 {[%clk 0:02:52.8]}
10. Bg5 {[%clk 0:02:50.4]} 10... Re8 {[%clk 0:02:44.6]} 11. Ng3 {[%clk
0:02:46.2]} 11... Na5 {[%clk 0:02:36.3]} 12. Nh5 {[%clk 0:02:41.3]} 12... Nxb3
{[%clk 0:02:33.6]} 13. axb3 {[%clk 0:02:42.2]} 13... d5 {[%clk 0:02:17.7]} 14.
Qe2 {[%clk 0:02:18.2]} 14... Nxh5 {[%clk 0:01:52]} 15. Bxd8 {[%clk 0:02:17.2]}
15... Nf4 {[%clk 0:01:51.7]} 16. Qc2 {[%clk 0:02:04.1]} 16... Raxd8 {[%clk
0:01:32.6]} 17. O-O {[%clk 0:01:54.8]} 17... f6 {[%clk 0:01:32.8]} 18. Rad1
{[%clk 0:01:53.8]} 18... Rd6 {[%clk 0:01:20.9]} 19. Rfe1 {[%clk 0:01:53.1]}
19... Red8 {[%clk 0:01:14.5]} 20. d4 {[%clk 0:01:36.5]} 20... dxe4 {[%clk
0:01:13.8]} 21. Qxe4 {[%clk 0:01:36]} 21... Bd5 {[%clk 0:00:49.2]} 22. Qf5
{[%clk 0:00:46.4]} 22... g6 {[%clk 0:00:23.4]} 23. Qc2 {[%clk 0:00:45.1]} 23...
Nxh3+ {[%clk 0:00:23.2]} 24. Kh2 {[%clk 0:00:41]} 24... Bxf3 {[%clk 0:00:18.4]}
25. gxf3 {[%clk 0:00:39.5]} 25... Ng5 {[%clk 0:00:19]} 26. Kg2 {[%clk
0:00:35.9]} 26... exd4 {[%clk 0:00:13]} 27. cxd4 {[%clk 0:00:36.8]} 27... Ne6
{[%clk 0:00:11.7]} 28. Qc4 {[%clk 0:00:34.9]} 28... b5 {[%clk 0:00:06.1]} 29.
Qxe6+ {[%clk 0:00:30.9]} 29... Rxe6 {[%clk 0:00:05.7]} 30. Rxe6 {[%clk
0:00:31.8]} 30... Kf7 {[%clk 0:00:03.6]} 31. Rxa6 {[%clk 0:00:31]} 31... Bb6
{[%clk 0:00:03.6]} 32. d5 {[%clk 0:00:19.9]} 32... Ke7 {[%clk 0:00:02.7]} 33. b4
{[%clk 0:00:20.3]} 33... h5 {[%clk 0:00:02.3]} 34. Ra3 {[%clk 0:00:17.4]} 34...
Rd6 {[%clk 0:00:00.8]} 35. Ra8 {[%clk 0:00:13.3]} 35... g5 {[%clk 0:00:00.8]}
36. Rh8 {[%clk 0:00:12.6]} 36... h4 {[%clk 0:00:01.2]} 37. Rh7+ {[%clk
0:00:13.1]} 37... Kf8 {[%clk 0:00:01.7]} 38. Ra1 {[%clk 0:00:12.4]} 38... Rd8
{[%clk 0:00:01.3]} 39. Re1 {[%clk 0:00:11.4]} 39... Kg8 {[%clk 0:00:01.1]} 40.
Ree7 {[%clk 0:00:11.9]} 40... Rd6 {[%clk 0:00:00.6]} 41. Rhf7 {[%clk 0:00:11.8]}
41... Rd8 {[%clk 0:00:00.2]} 42. Rg7+ {[%clk 0:00:10.4]} 1-0

[Event "Early-Titled-Tuesday-Blitz-May-14-2024"]
[Site "Chess.com"]
[Date "2024.05.14"]
[Round "11"]
[White "Arteler"]
[Black "falzehope0"]
[Result "0-1"]
[WhiteElo "2228"]
[BlackElo "2370"]
[TimeControl "180+1"]
[EndTime "10:08:14 PDT"]
[Termination "falzehope0 won by checkmate"]

1. e4 {[%clk 0:03:00.9]} 1... d6 {[%clk 0:02:59]} 2. d4 {[%clk 0:02:59.5]} 2...
Nf6 {[%clk 0:02:58.9]} 3. Nc3 {[%clk 0:02:58.7]} 3... Nbd7 {[%clk 0:02:59]} 4.
Nf3 {[%clk 0:02:58]} 4... e5 {[%clk 0:02:58.6]} 5. Bc4 {[%clk 0:02:58.6]} 5...
Be7 {[%clk 0:02:58.3]} 6. O-O {[%clk 0:02:58]} 6... c6 {[%clk 0:02:57.7]} 7. Bb3
{[%clk 0:02:40.7]} 7... O-O {[%clk 0:02:55.5]} 8. Bg5 {[%clk 0:02:37.3]} 8...
Qc7 {[%clk 0:02:55.2]} 9. dxe5 {[%clk 0:02:32]} 9... dxe5 {[%clk 0:02:54.7]} 10.
Qe2 {[%clk 0:02:28.6]} 10... Nc5 {[%clk 0:02:52.8]} 11. Rfd1 {[%clk 0:02:24.5]}
11... Ne6 {[%clk 0:02:52.2]} 12. Be3 {[%clk 0:02:17.1]} 12... h6 {[%clk
0:02:47.1]} 13. Rd2 {[%clk 0:02:09.6]} 13... Nh7 {[%clk 0:02:43.6]} 14. Rad1
{[%clk 0:02:09.1]} 14... Bg5 {[%clk 0:02:41.3]} 15. Nxg5 {[%clk 0:02:02.9]}
15... hxg5 {[%clk 0:02:40.4]} 16. g3 {[%clk 0:01:46.7]} 16... g6 {[%clk
0:02:37.2]} 17. Na4 {[%clk 0:01:44.2]} 17... Kg7 {[%clk 0:02:36.4]} 18. Nc5
{[%clk 0:01:42.5]} 18... Qe7 {[%clk 0:02:34.8]} 19. Nxe6+ {[%clk 0:01:39.8]}
19... Bxe6 {[%clk 0:02:34.3]} 20. Rd6 {[%clk 0:01:23.3]} 20... Rfd8 {[%clk
0:02:25.3]} 21. Bc5 {[%clk 0:01:22.3]} 21... Rxd6 {[%clk 0:02:17.4]} 22. Bxd6
{[%clk 0:01:23.2]} 22... Qf6 {[%clk 0:02:17.2]} 23. Bb4 {[%clk 0:01:11]} 23...
Bxb3 {[%clk 0:02:09.9]} 24. axb3 {[%clk 0:01:11.9]} 24... Nf8 {[%clk 0:02:08.5]}
25. Rd6 {[%clk 0:01:10.8]} 25... Ne6 {[%clk 0:02:06.6]} 26. Bc3 {[%clk
0:01:10.7]} 26... g4 {[%clk 0:01:57.4]} 27. Qxg4 {[%clk 0:01:02.8]} 27... Re8
{[%clk 0:01:56.2]} 28. f4 {[%clk 0:00:58.7]} 28... Qe7 {[%clk 0:01:44.7]} 29.
Bxe5+ {[%clk 0:00:50]} 29... Kg8 {[%clk 0:01:44.8]} 30. Rd2 {[%clk 0:00:38.1]}
30... Qc5+ {[%clk 0:01:41.7]} 31. Kg2 {[%clk 0:00:36.6]} 31... Qe3 {[%clk
0:01:41]} 32. Re2 {[%clk 0:00:34.8]} 32... Qc1 {[%clk 0:01:38.4]} 33. f5 {[%clk
0:00:34.6]} 33... Ng7 {[%clk 0:01:36.3]} 34. Bf4 {[%clk 0:00:28.3]} 34... gxf5
{[%clk 0:01:30]} 35. exf5 {[%clk 0:00:23.7]} 35... Rxe2+ {[%clk 0:01:27.6]} 36.
Qxe2 {[%clk 0:00:24.6]} 36... Qxb2 {[%clk 0:01:17.8]} 37. Be5 {[%clk 0:00:24.7]}
37... Qa2 {[%clk 0:01:06.1]} 38. Qg4 {[%clk 0:00:24.8]} 38... Qxc2+ {[%clk
0:01:06]} 39. Kh3 {[%clk 0:00:25.4]} 39... Qxf5 {[%clk 0:01:01]} 40. Bxg7 {[%clk
0:00:23]} 40... Qxg4+ {[%clk 0:01:01.1]} 41. Kxg4 {[%clk 0:00:23.8]} 41... Kxg7
{[%clk 0:01:01.4]} 42. Kf4 {[%clk 0:00:24]} 42... a5 {[%clk 0:01:01.3]} 43. Ke4
{[%clk 0:00:23.1]} 43... b5 {[%clk 0:01:00]} 44. Kd4 {[%clk 0:00:21.9]} 44... f5
{[%clk 0:00:56.8]} 45. Kc5 {[%clk 0:00:18.8]} 45... Kg6 {[%clk 0:00:54.5]} 46.
h3 {[%clk 0:00:16.4]} 46... Kh5 {[%clk 0:00:53.8]} 47. Kd4 {[%clk 0:00:12.6]}
47... Kg5 {[%clk 0:00:52.7]} 48. Kc5 {[%clk 0:00:13]} 48... f4 {[%clk 0:00:49]}
49. h4+ {[%clk 0:00:06.5]} 49... Kg4 {[%clk 0:00:47.2]} 50. gxf4 {[%clk
0:00:07.4]} 50... Kxh4 {[%clk 0:00:46.5]} 51. Kxc6 {[%clk 0:00:08.3]} 51... a4
{[%clk 0:00:46.3]} 52. f5 {[%clk 0:00:07.8]} 52... Kg5 {[%clk 0:00:44.7]} 53. f6
{[%clk 0:00:08.7]} 53... Kxf6 {[%clk 0:00:44.7]} 54. Kxb5 {[%clk 0:00:05.2]}
54... axb3 {[%clk 0:00:44.7]} 55. Kb4 {[%clk 0:00:06.1]} 55... b2 {[%clk
0:00:45.2]} 56. Kc3 {[%clk 0:00:07]} 56... b1=Q {[%clk 0:00:46]} 57. Kd4 {[%clk
0:00:06]} 57... Qf5 {[%clk 0:00:46.9]} 58. Kc4 {[%clk 0:00:06.1]} 58... Ke6
{[%clk 0:00:47.8]} 59. Kc3 {[%clk 0:00:06.5]} 59... Kd5 {[%clk 0:00:47.7]} 60.
Kb2 {[%clk 0:00:07.4]} 60... Kc4 {[%clk 0:00:47.5]} 61. Kc1 {[%clk 0:00:08.3]}
61... Kc3 {[%clk 0:00:46.6]} 62. Kd1 {[%clk 0:00:07.8]} 62... Qe4 {[%clk
0:00:46.3]} 63. Kc1 {[%clk 0:00:07.2]} 63... Qe1# {[%clk 0:00:47.2]} 0-1

[Event "Early-Titled-Tuesday-Blitz-May-14-2024"]
[Site "Chess.com"]
[Date "2024.05.14"]
[Round "11"]
[White "DominguezOnYoutube"]
[Black "Jospem"]
[Result "0-1"]
[WhiteElo "3022"]
[BlackElo "3017"]
[TimeControl "180+1"]
[EndTime "10:08:16 PDT"]
[Termination "Jospem won on time"]

1. e4 {[%clk 0:03:00.9]} 1... c5 {[%clk 0:03:00.6]} 2. Nf3 {[%clk 0:03:01.1]}
2... d6 {[%clk 0:03:01.1]} 3. d4 {[%clk 0:03:01.5]} 3... cxd4 {[%clk 0:03:02]}
4. Nxd4 {[%clk 0:03:01.9]} 4... Nf6 {[%clk 0:03:02.9]} 5. Nc3 {[%clk 0:03:02.1]}
5... a6 {[%clk 0:03:03]} 6. Be3 {[%clk 0:03:02.4]} 6... e6 {[%clk 0:03:01.2]} 7.
a3 {[%clk 0:03:01.9]} 7... b5 {[%clk 0:03:00.5]} 8. g4 {[%clk 0:03:01.9]} 8...
Nfd7 {[%clk 0:02:56.4]} 9. g5 {[%clk 0:02:59.2]} 9... Bb7 {[%clk 0:02:42.8]} 10.
h4 {[%clk 0:02:59.2]} 10... Nc5 {[%clk 0:02:42.9]} 11. f3 {[%clk 0:02:58]} 11...
Be7 {[%clk 0:02:40.8]} 12. Qd2 {[%clk 0:02:55.8]} 12... Nbd7 {[%clk 0:02:41.1]}
13. O-O-O {[%clk 0:02:53.5]} 13... Nb6 {[%clk 0:02:36.5]} 14. h5 {[%clk
0:02:51.7]} 14... d5 {[%clk 0:02:23.5]} 15. Qg2 {[%clk 0:02:21.9]} 15... O-O
{[%clk 0:01:27.8]} 16. g6 {[%clk 0:02:12.5]} 16... Bf6 {[%clk 0:01:23.6]} 17. h6
{[%clk 0:01:49.6]} 17... hxg6 {[%clk 0:01:14]} 18. Qh2 {[%clk 0:01:16.9]} 18...
Bg5 {[%clk 0:00:55]} 19. Qg1 {[%clk 0:00:49.9]} 19... Bxh6 {[%clk 0:00:49]} 20.
Bxh6 {[%clk 0:00:44.5]} 20... gxh6 {[%clk 0:00:49.9]} 21. Rxh6 {[%clk
0:00:41.7]} 21... Kg7 {[%clk 0:00:50.1]} 22. Qe3 {[%clk 0:00:29.6]} 22... e5
{[%clk 0:00:30.9]} 23. Nf5+ {[%clk 0:00:14.8]} 23... gxf5 {[%clk 0:00:31.3]} 24.
Bxb5 {[%clk 0:00:06.4]} 24... f4 {[%clk 0:00:19.2]} 25. Rg1+ {[%clk 0:00:06.4]}
25... Kxh6 {[%clk 0:00:19.7]} 26. Qf2 {[%clk 0:00:06.6]} 26... Qg5 {[%clk
0:00:13.1]} 27. Rxg5 {[%clk 0:00:07.1]} 27... Kxg5 {[%clk 0:00:14]} 28. Qxc5
{[%clk 0:00:07.3]} 28... axb5 {[%clk 0:00:09.6]} 29. Qxb6 {[%clk 0:00:07.8]}
29... Rab8 {[%clk 0:00:10.1]} 30. Qd6 {[%clk 0:00:07.1]} 30... Rbe8 {[%clk
0:00:06.8]} 31. Nxd5 {[%clk 0:00:05.8]} 31... Bxd5 {[%clk 0:00:06.8]} 32. Qxd5
{[%clk 0:00:06.1]} 32... f5 {[%clk 0:00:06.7]} 33. exf5 {[%clk 0:00:04.5]} 33...
Rxf5 {[%clk 0:00:06.3]} 34. Qxb5 {[%clk 0:00:03.9]} 34... Rff8 {[%clk
0:00:06.7]} 35. Qd5 {[%clk 0:00:03.5]} 35... Kh4 {[%clk 0:00:07.3]} 36. a4
{[%clk 0:00:03.2]} 36... e4 {[%clk 0:00:07.4]} 37. fxe4 {[%clk 0:00:03.1]} 37...
f3 {[%clk 0:00:08.3]} 38. e5 {[%clk 0:00:02.8]} 38... f2 {[%clk 0:00:06]} 39.
Qh1+ {[%clk 0:00:03.3]} 39... Kg3 {[%clk 0:00:06.6]} 40. Qf1 {[%clk 0:00:03.4]}
40... Rxe5 {[%clk 0:00:07.2]} 41. Kd2 {[%clk 0:00:03.2]} 41... Rd8+ {[%clk
0:00:05.6]} 42. Kc3 {[%clk 0:00:03.6]} 42... Re1 {[%clk 0:00:05.3]} 0-1